fUSD/lending_fUSD_20240329
["ID","MTS","AMOUNT","RATE_DAILY","PERIOD"]
[320944251,1711720260107,-500.0,0.00050136,120]
[320944252,1711720260124,-500.0,0.00050136,120]
[320944253,1711720260138,-500.0,0.00050136,120]
[320944254,1711720260154,-500.0,0.00050136,120]
[320944255,1711720260170,-679.79,0.00050136,120]
[320944256,1711720260185,-536.03864103,0.00050136,120]
[320944257,1711720260199,-500.0,0.00050136,120]
[320944258,1711720260214,-500.0,0.00050136,120]
[320944259,1711720260229,-500.0,0.00050136,120]
[320944260,1711720260244,-500.0,0.00050136,7]
[320944261,1711720260258,-500.0,0.00050136,120]
[320944262,1711720260272,-500.0,0.00050136,120]
[320944263,1711720260287,-500.0,0.00050136,120]
[320944264,1711720260302,-500.0,0.00050136,120]
[320944265,1711720260317,-500.0,0.00050136,120]
[320944266,1711720260330,-500.0,0.00050136,120]
[320944267,1711720260345,-500.0,0.00050136,120]
[320944268,1711720260359,-518.05815325,0.00050136,120]
[320944269,1711720260374,-853.69,0.00050136,120]
[320944270,1711720260393,-500.0,0.00050136,120]
[320944271,1711720260408,-500.0,0.00050136,120]
[320944272,1711720260422,-500.0,0.00050136,120]
[320944273,1711720260436,-500.0,0.00050136,120]
[320944274,1711720260450,-550.51888371,0.00050136,120]
[320944275,1711720260468,-500.0,0.00050136,120]
[320944276,1711720260484,-896.8,0.00050136,120]
[320944277,1711720260614,-786.23,0.00050136,120]
[320944278,1711720260627,-522.53,0.00050136,120]
[320944279,1711720260637,-500.0,0.00050136,120]
[320944280,1711720260646,-500.0,0.00050136,120]
[320944281,1711720260655,-461.48920491,0.00050136,120]
[320944282,1711720260664,-500.0,0.00050136,120]
[320944283,1711720260673,-500.0,0.00050136,120]
[320944284,1711720260735,-500.0,0.00050136,120]
[320944285,1711720260746,-508.45485814,0.00050136,120]
[320944286,1711720260756,-500.0,0.00050136,120]
[320944287,1711720260766,-594.23,0.00050136,120]
[320944288,1711720260776,-9880.52,0.00050136,120]
[320944289,1711720260786,-1749.42,0.00050136,120]
[320944290,1711720260796,-500.0,0.00050136,120]
[320944291,1711720260805,-500.0,0.00050136,120]
[320944292,1711720260814,-500.0,0.00050136,120]
[320944293,1711720260823,-500.0,0.00050136,120]
[320944294,1711720260833,-500.0,0.00050136,120]
[320944295,1711720260843,-500.0,0.00050136,120]
[320944296,1711720260853,-500.0,0.00050136,120]
[320944297,1711720260863,-500.0,0.00050136,120]
[320944298,1711720260873,-512.36734248,0.00050136,120]
[320944299,1711720260883,-573.33,0.00050136,120]
[320944300,1711720260895,-421.61858222,0.00050136,120]
[320944301,1711720260906,-500.0,0.00050136,120]
[320944302,1711720260916,-500.0,0.00050136,120]
[320944303,1711720260927,-500.0,0.00050136,120]
[320944304,1711720260936,-500.0,0.00050136,120]
[320944305,1711720260946,-532.04363507,0.00050136,120]
[320944306,1711720260955,-500.0,0.00050136,120]
[320944307,1711720260965,-528.54601543,0.00050136,120]
[320944308,1711720260975,-500.0,0.00050136,120]
[320944309,1711720260985,-512.31,0.00050136,120]
[320944310,1711720260994,-500.0,0.00050136,120]
[320944311,1711720261005,-529.98967203,0.00050136,120]
[320944312,1711720261014,-500.0,0.00050136,120]
[320944313,1711720261023,-500.0,0.00050136,120]
[320944314,1711720261034,-526.52128944,0.00050136,120]
[320944315,1711720261043,-500.0,0.00050136,120]
[320944316,1711720261052,-500.0,0.00050136,120]
[320944317,1711720261062,-500.0,0.00050136,120]
[320944318,1711720261071,-500.0,0.00050136,120]
[320944319,1711720261080,-573.9468098,0.00050136,120]
[320944320,1711720261090,-500.0,0.00050136,120]
[320944321,1711720261099,-500.0,0.00050136,120]
[320944322,1711720261109,-500.0,0.00050136,120]
[320944323,1711720261118,-500.0,0.00050136,120]
[320944324,1711720261127,-178.92969041,0.00050136,120]
[320944325,1711720261137,-545.68,0.00050136,120]
[320944326,1711720261149,-500.0,0.00050136,120]
[320944327,1711720261158,-500.0,0.00050136,120]
[320944328,1711720261169,-500.0,0.00050136,120]
[320944329,1711720261178,-500.0,0.00050136,120]
[320944330,1711720261188,-500.0,0.00050136,120]
[320944331,1711720261197,-500.0,0.00050136,120]
[320944332,1711720261207,-500.0,0.00050136,120]
[320944333,1711720261216,-500.0,0.00050136,120]
[320944334,1711720261225,-500.0,0.00050136,120]
[320944335,1711720261235,-500.0,0.00050136,80]
[320944336,1711720261245,-500.0,0.00050136,120]
[320944337,1711720261255,-500.0,0.00050136,120]
[320944338,1711720261264,-500.0,0.00050136,120]
[320944339,1711720261274,-500.0,0.00050136,120]
[320944340,1711720261284,-1990.61,0.00050136,120]
[320944341,1711720261293,-500.0,0.00050136,120]
[320944342,1711720261302,-500.0,0.00050136,120]
[320944343,1711720261311,-500.0,0.00050136,120]
[320944344,1711720261320,-500.0,0.00050136,120]
[320944345,1711720261330,-533.69409205,0.00050136,120]
[320944346,1711720261342,-500.0,0.00050136,120]
[320944347,1711720261351,-513.21647345,0.00050136,120]
[320944348,1711720261361,-1229.22,0.00050136,120]
[320944349,1711720261371,-500.0,0.00050136,120]
[320944350,1711720261381,-817.16,0.00050136,120]
[320944351,1711720261394,-500.0,0.00050136,120]
[320944352,1711720261404,-500.0,0.00050136,120]
[320944353,1711720261413,-500.0,0.00050136,120]
[320944354,1711720261422,-500.0,0.00050136,120]
[320944355,1711720261432,-500.0,0.00050136,120]
[320944356,1711720261441,-553.19,0.00050136,120]
[320944357,1711720261450,-500.0,0.00050136,120]
[320944358,1711720261461,-500.0,0.00050136,120]
[320944359,1711720261472,-770.3,0.00050136,120]
[320944360,1711720261481,-4469.38,0.00050136,120]
[320944361,1711720261492,-500.0,0.00050136,120]
[320944362,1711720261504,-679.26,0.00050136,120]
[320944363,1711720261514,-500.0,0.00050136,120]
[320944364,1711720261525,-713.39,0.00050136,120]
[320944365,1711720261537,-885.4,0.00050136,120]
[320944366,1711720261547,-500.0,0.00050136,120]
[320944367,1711720261559,-500.0,0.00050136,120]
[320944368,1711720261571,-500.0,0.00050136,120]
[320944369,1711720261582,-340.35122254,0.00050136,120]
[320944370,1711720261593,-500.0,0.00050136,120]
[320944371,1711720261604,-500.0,0.00050136,120]
[320944372,1711720261614,-640.98516445,0.00050136,120]
[320944373,1711720261624,-509.00926348,0.00050136,120]
[320944374,1711720261634,-500.0,0.00050136,120]
[320944375,1711720261646,-1238.51,0.00050136,120]
[320944376,1711720261656,-500.0,0.00050136,120]
[320944377,1711720261665,-1635.01,0.00050136,120]
[320944378,1711720261676,-500.0,0.00050136,120]
[320944379,1711720261687,-500.0,0.00050136,120]
[320944380,1711720261699,-576.18,0.00050136,120]
[320944381,1711720261710,-500.0,0.00050136,120]
[320944382,1711720261720,-500.0,0.00050136,60]
[320944383,1711720261729,-500.0,0.00050136,120]
[320944384,1711720261739,-572.69424067,0.00050136,120]
[320944385,1711720261750,-383.68891999,0.00050136,120]
[320944386,1711720261762,-500.0,0.00050136,120]
[320944387,1711720261773,-855.16,0.00050136,120]
[320944388,1711720261783,-500.0,0.00050136,120]
[320944389,1711720261793,-500.0,0.00050136,120]
[320944390,1711720261804,-500.0,0.00050136,120]
[320944391,1711720261814,-531.08,0.00050136,120]
[320944392,1711720261825,-500.0,0.00050136,120]
[320944393,1711720261836,-500.0,0.00050136,120]
[320944394,1711720261847,-500.0,0.00050136,120]
[320944395,1711720261857,-500.0,0.00050136,120]
[320944396,1711720261866,-500.0,0.00050136,120]
[320944397,1711720261875,-500.0,0.00050136,120]
[320944398,1711720261885,-534.13,0.00050136,120]
[320944399,1711720261898,-500.0,0.00050136,120]
[320944400,1711720261908,-500.0,0.00050136,120]
[320944401,1711720261918,-6532.1,0.00050136,120]
[320944402,1711720261930,-523.64,0.00050136,120]
[320944403,1711720261942,-560.66,0.00050136,120]
[320944404,1711720261952,-287.97132517,0.00050136,120]
[320944405,1711720261961,-502.42,0.00050136,120]
[320944406,1711720261971,-500.0,0.00050136,120]
[320944407,1711720261981,-723.57,0.00050136,120]
[320944408,1711720261991,-1682.83,0.00050136,120]
[320944409,1711720262002,-500.0,0.00050136,120]
[320944410,1711720262011,-500.0,0.00050136,120]
[320944411,1711720262021,-500.0,0.00050136,120]
[320944412,1711720262030,-638.67,0.00050136,120]
[320944413,1711720262040,-503.68,0.00050136,120]
[320944414,1711720262051,-500.0,0.00050136,120]
[320944415,1711720262062,-1618.73,0.00050136,120]
[320944416,1711720262072,-3551.69,0.00050136,120]
[320944417,1711720262082,-500.0,0.00050136,120]
[320944418,1711720262091,-500.0,0.00050136,120]
[320944419,1711720262101,-1046.84,0.00050136,64]
[320944420,1711720262111,-526.96808378,0.00050136,120]
[320944421,1711720262121,-500.0,0.00050136,120]
[320944422,1711720262131,-520.38709821,0.00050136,120]
[320944423,1711720262141,-500.0,0.00050136,120]
[320944424,1711720262155,-1902.79,0.00050136,120]
[320944425,1711720262165,-500.0,0.00050136,120]
[320944426,1711720262175,-500.0,0.00050136,120]
[320944427,1711720262185,-523.06,0.00050136,120]
[320944428,1711720262195,-500.0,0.00050136,120]
[320944429,1711720262207,-500.0,0.00050136,120]
[320944430,1711720262218,-592.77053852,0.00050136,120]
[320944431,1711720262228,-500.0,0.00050136,120]
[320944432,1711720262238,-783.41,0.00050136,120]
[320944433,1711720262249,-1110.8,0.00050136,120]
[320944434,1711720262259,-500.0,0.00050136,120]
[320944435,1711720262268,-500.0,0.00050136,120]
[320944436,1711720262278,-500.0,0.00050136,120]
[320944437,1711720262288,-516.74,0.00050136,120]
[320944438,1711720262297,-500.0,0.00050136,120]
[320944439,1711720262308,-500.0,0.00050136,120]
[320944440,1711720262317,-500.0,0.00050136,120]
[320944441,1711720262327,-728.83,0.00050136,21]
[320944442,1711720262338,-500.0,0.00050136,120]
[320944443,1711720262349,-500.0,0.00050136,120]
[320944444,1711720262361,-237.34115219,0.00050136,120]
[320944445,1711720262371,-1108.05,0.00050136,120]
[320944446,1711720262384,-500.0,0.00050136,120]
[320944447,1711720262397,-500.0,0.00050136,120]
[320944448,1711720262407,-500.0,0.00050136,120]
[320944449,1711720262418,-500.0,0.00050136,120]
[320944450,1711720262428,-500.0,0.00050136,120]
[320944451,1711720262438,-988.84,0.00050136,120]
[320944452,1711720262448,-500.0,0.00050136,120]
[320944453,1711720262459,-534.32658627,0.00050136,120]
[320944454,1711720262469,-627.93,0.00050136,120]
[320944455,1711720262479,-500.0,0.00050136,120]
[320944456,1711720262489,-500.0,0.00050136,120]
[320944457,1711720262499,-500.0,0.00050136,120]
[320944458,1711720262510,-531.09341587,0.00050136,120]
[320944459,1711720262520,-519.08863431,0.00050136,30]
[320944460,1711720262533,-500.0,0.00050136,120]
[320944461,1711720262545,-177.19491141,0.00050136,120]
[320944462,1711720262555,-500.0,0.00050136,120]
[320944463,1711720262567,-743.49,0.00050136,120]
[320944464,1711720262579,-500.0,0.00050136,2]
[320944465,1711720262590,-500.0,0.00050136,120]
[320944466,1711720262698,-500.0,0.00050136,120]
[320944467,1711720262708,-1845.14,0.00050136,120]
[320944468,1711720262720,-826.94,0.00050136,120]
[320944469,1711720262732,-443.76214302,0.00050136,120]
[320944470,1711720262745,-500.0,0.00050136,120]
[320944471,1711720262755,-500.0,0.00050136,120]
[320944472,1711720262766,-838.3,0.00050136,120]
[320944473,1711720262776,-679.1,0.00050136,120]
[320944474,1711720262788,-500.0,0.00050136,120]
[320944475,1711720262800,-2055.89,0.00050136,120]
[320944476,1711720262810,-500.0,0.00050136,120]
[320944477,1711720262821,-500.0,0.00050136,120]
[320944478,1711720262831,-526.73640527,0.00050136,120]
[320944479,1711720262841,-500.0,0.00050136,120]
[320944480,1711720262850,-617.83,0.00050136,120]
[320944481,1711720262860,-1240.17,0.00050136,120]
[320944482,1711720262870,-500.0,0.00050136,120]
[320944483,1711720262881,-500.0,0.00050136,120]
[320944484,1711720262892,-500.0,0.00050136,120]
[320944485,1711720262906,-500.0,0.00050136,120]
[320944486,1711720262916,-500.0,0.00050136,120]
[320944487,1711720262928,-509.29937212,0.00050136,120]
[320944488,1711720262939,-500.0,0.00050136,120]
[320944489,1711720262949,-556.26020862,0.00050136,120]
[320944490,1711720262959,-500.0,0.00050136,120]
[320944491,1711720262970,-663.18,0.00050136,120]
[320944492,1711720262979,-500.0,0.00050136,120]
[320944493,1711720262988,-500.0,0.00050136,120]
[320944494,1711720262997,-500.0,0.00050136,120]
[320944495,1711720263006,-500.0,0.00050136,120]
[320944496,1711720263016,-550.39852283,0.00050136,120]
[320944497,1711720263025,-524.22226264,0.00050136,120]
[320944498,1711720263035,-1451.79,0.00050136,120]
[320944499,1711720263046,-500.0,0.00050136,120]
[320944500,1711720263056,-372.86631155,0.00050136,120]
[320944501,1711720263066,-544.03368913,0.00050136,120]
[320944502,1711720263076,-441.12143804,0.00050136,120]
[320944503,1711720263086,-500.0,0.00050136,120]
[320944504,1711720263096,-500.0,0.00050136,120]
[320944505,1711720263105,-500.0,0.00050136,120]
[320944506,1711720263114,-599.61441505,0.00050136,120]
[320944507,1711720263123,-500.0,0.00050136,120]
[320944508,1711720263133,-500.0,0.00050136,120]
[320944509,1711720263142,-500.0,0.00050136,120]
[320944510,1711720263153,-500.0,0.00050136,2]
[320944511,1711720263162,-500.0,0.00050136,120]
[320944512,1711720263171,-530.60179658,0.00050136,120]
[320944513,1711720263180,-500.0,0.00050136,120]
[320944514,1711720263190,-500.0,0.00050136,120]
[320944515,1711720263199,-500.0,0.00050136,120]
[320944516,1711720263208,-1038.95,0.00050136,120]
[320944517,1711720263218,-697.14,0.00050136,120]
[320944518,1711720263227,-521.09150105,0.00050136,120]
[320944519,1711720263236,-210.06,0.000502,7]
[320944520,1711720263246,-2257.88067085,0.00050276,2]
[320944521,1711720263255,-500.0,0.000503,120]
[320944522,1711720263265,-500.0,0.000503,120]
[320944523,1711720263274,-272.09958707,0.000503,120]
[320944524,1711720263283,-500.0,0.000503,120]
[320944525,1711720263292,-500.0,0.000503,120]
[320944526,1711720263301,-500.0,0.000503,120]
[320944527,1711720263310,-515.87075466,0.000503,120]
[320944528,1711720263319,-500.0,0.000503,120]
[320944529,1711720263329,-500.0,0.000503,120]
[320944530,1711720263340,-500.0,0.000503,120]
[320944531,1711720263349,-500.0,0.000503,120]
[320944532,1711720263358,-500.0,0.000503,120]
[320944533,1711720263367,-500.0,0.000503,120]
[320944534,1711720263377,-500.0,0.000503,120]
[320944535,1711720263388,-500.0,0.000503,120]
[320944536,1711720263400,-500.0,0.000503,120]
[320944537,1711720263410,-500.0,0.000503,120]
[320944538,1711720263419,-544.45277493,0.000503,120]
[320944539,1711720263430,-500.0,0.000503,120]
[320944540,1711720263439,-508.87369749,0.000503,120]
[320944541,1711720263449,-500.0,0.000503,120]
[320944542,1711720263459,-500.0,0.000503,120]
[320944543,1711720263470,-500.0,0.000503,120]
[320944544,1711720263482,-500.0,0.000503,120]
[320944545,1711720263491,-500.0,0.000503,120]
[320944546,1711720263500,-500.0,0.000503,120]
[320944547,1711720263510,-1137.41,0.000503,120]
[320944548,1711720263519,-500.0,0.000503,120]
[320944549,1711720263528,-513.36032681,0.000503,120]
[320944550,1711720263538,-523.28171185,0.000503,120]
[320944551,1711720263548,-503.33160077,0.000503,120]
[320944552,1711720263559,-500.0,0.000503,120]
[320944553,1711720263569,-500.0,0.000503,120]
[320944554,1711720263578,-500.0,0.000503,120]
[320944555,1711720263587,-500.0,0.000503,120]
[320944556,1711720263597,-500.0,0.000503,120]
[320944557,1711720263606,-500.0,0.000503,120]
[320944558,1711720263615,-500.0,0.000503,120]
[320944559,1711720263625,-500.0,0.000503,120]
[320944560,1711720263634,-513.50453937,0.000503,120]
[320944561,1711720263648,-500.0,0.000503,120]
[320944562,1711720263660,-500.0,0.000503,120]
[320944563,1711720263669,-500.0,0.000503,120]
[320944564,1711720263678,-500.0,0.000503,120]
[320944565,1711720263688,-500.0,0.000503,120]
[320944566,1711720263698,-500.0,0.000503,120]
[320944567,1711720263707,-500.0,0.000503,120]
[320944568,1711720263717,-500.0,0.000503,120]
[320944569,1711720263726,-500.0,0.000503,120]
[320944570,1711720263735,-500.0,0.000503,120]
[320944571,1711720263744,-500.0,0.000503,120]
[320944572,1711720263754,-511.52518678,0.000503,120]
[320944573,1711720263764,-500.0,0.000503,120]
[320944574,1711720263774,-500.0,0.000503,120]
[320944575,1711720263783,-500.0,0.000503,120]
[320944576,1711720263792,-500.0,0.000503,120]
[320944577,1711720263801,-596.39896718,0.000503,2]
[320944578,1711720263810,-509.8997984,0.000503,120]
[320944579,1711720263819,-500.0,0.000503,120]
[320944580,1711720263832,-525.58219205,0.000503,120]
[320944581,1711720263841,-512.88102574,0.000503,120]
[320944582,1711720263850,-500.0,0.000503,120]
[320944583,1711720263859,-500.0,0.000503,120]
[320944584,1711720263869,-500.0,0.000503,120]
[320944585,1711720263879,-500.0,0.000503,120]
[320944586,1711720263888,-500.0,0.000503,120]
[320944587,1711720263902,-500.0,0.000503,120]
[320944588,1711720263911,-500.0,0.000503,120]
[320944589,1711720263920,-500.0,0.000503,120]
[320944590,1711720263929,-500.0,0.000503,120]
[320944591,1711720263938,-500.0,0.000503,120]
[320944592,1711720263948,-500.0,0.000503,120]
[320944593,1711720263958,-500.0,0.000503,120]
[320944594,1711720263968,-500.0,0.000503,120]
[320944595,1711720263977,-500.0,0.000503,120]
[320944596,1711720263986,-500.0,0.000503,120]
[320944597,1711720263996,-500.0,0.000503,120]
[320944598,1711720264005,-500.0,0.000503,120]
[320944599,1711720264015,-500.0,0.000503,120]
[320944600,1711720264025,-519.67209712,0.000503,120]
[320944601,1711720264035,-513.98252064,0.000503,120]
[320944602,1711720264048,-500.0,0.000503,120]
[320944603,1711720264057,-500.0,0.000503,120]
[320944604,1711720264066,-500.0,0.000503,120]
[320944605,1711720264075,-500.0,0.000503,120]
[320944606,1711720264085,-500.0,0.000503,120]
[320944607,1711720264094,-500.0,0.000503,120]
[320944608,1711720264104,-500.0,0.000503,120]
[320944609,1711720264113,-500.0,0.000503,120]
[320944610,1711720264122,-502.04271547,0.000503,120]
[320944611,1711720264131,-500.0,0.000503,120]
[320944612,1711720264141,-500.0,0.000503,120]
[320944613,1711720264158,-500.0,0.000503,120]
[320944614,1711720264168,-500.0,0.000503,120]
[320944615,1711720264178,-500.0,0.000503,120]
[320944616,1711720264187,-500.0,0.000503,120]
[320944617,1711720264198,-500.0,0.000503,120]
[320944618,1711720264208,-500.0,0.000503,120]
[320944619,1711720264218,-9105.13900606,0.000503,2]
[320944620,1711720264228,-500.0,0.000503,120]
[320944621,1711720264237,-500.0,0.000503,120]
[320944622,1711720264246,-500.0,0.000503,120]
[320944623,1711720264256,-500.0,0.000503,120]
[320944624,1711720264266,-500.0,0.000503,120]
[320944625,1711720264275,-500.0,0.000503,120]
[320944626,1711720264285,-500.0,0.000503,120]
[320944627,1711720264294,-598.90604189,0.000503,120]
[320944628,1711720264304,-500.0,0.000503,120]
[320944629,1711720264314,-500.0,0.000503,120]
[320944630,1711720264323,-500.0,0.000503,120]
[320944631,1711720264333,-500.0,0.000503,120]
[320944632,1711720264342,-500.0,0.000503,120]
[320944633,1711720264353,-500.0,0.000503,120]
[320944634,1711720264364,-500.0,0.000503,120]
[320944635,1711720264375,-500.0,0.000503,120]
[320944636,1711720264386,-500.0,0.000503,120]
[320944637,1711720264401,-500.0,0.000503,120]
[320944638,1711720264411,-500.0,0.000503,120]
[320944639,1711720264520,-548.50717266,0.000503,120]
[320944640,1711720264531,-500.0,0.000503,120]
[320944641,1711720264541,-500.0,0.000503,120]
[320944642,1711720264551,-500.0,0.000503,120]
[320944643,1711720264560,-500.0,0.000503,120]
[320944644,1711720264569,-500.0,0.000503,120]
[320944645,1711720264579,-500.0,0.000503,120]
[320944646,1711720264588,-500.0,0.000503,120]
[320944647,1711720264598,-553.30361203,0.000503,120]
[320944648,1711720264607,-500.0,0.000503,120]
[320944649,1711720264616,-507.29000899,0.000503,120]
[320944650,1711720264626,-500.0,0.000503,120]
[320944651,1711720264635,-500.0,0.000503,120]
[320944652,1711720264650,-500.0,0.000503,120]
[320944653,1711720264660,-500.0,0.000503,120]
[320944654,1711720264670,-500.0,0.000503,120]
[320944655,1711720264679,-500.0,0.000503,120]
[320944656,1711720264688,-500.0,0.000503,120]
[320944657,1711720264698,-500.0,0.000503,120]
[320944658,1711720264706,-500.0,0.000503,120]
[320944659,1711720264716,-500.0,0.000503,120]
[320944660,1711720264725,-500.0,0.000503,120]
[320944661,1711720264735,-500.0,0.000503,120]
[320944662,1711720264744,-500.0,0.000503,120]
[320944663,1711720264753,-500.0,0.000503,120]
[320944664,1711720264763,-500.0,0.000503,120]
[320944665,1711720264773,-500.0,0.000503,120]
[320944666,1711720264783,-500.0,0.000503,120]
[320944667,1711720264792,-500.0,0.000503,120]
[320944668,1711720264801,-500.0,0.000503,120]
[320944669,1711720264812,-505.97757478,0.000503,120]
[320944670,1711720264822,-506.18565085,0.000503,120]
[320944671,1711720264833,-500.0,0.000503,120]
[320944672,1711720264842,-500.0,0.000503,120]
[320944673,1711720264852,-500.0,0.000503,120]
[320944674,1711720264861,-500.0,0.000503,120]
[320944675,1711720264870,-500.0,0.000503,120]
[320944676,1711720264879,-500.0,0.000503,120]
[320944677,1711720264888,-500.0,0.000503,120]
[320944678,1711720264900,-507.02830714,0.000503,120]
[320944679,1711720264909,-500.0,0.000503,120]
[320944680,1711720264919,-500.0,0.000503,2]
[320944681,1711720264928,-500.0,0.000503,120]
[320944682,1711720264938,-500.0,0.000503,120]
[320944683,1711720264947,-500.0,0.000503,120]
[320944684,1711720264957,-500.0,0.000503,120]
[320944685,1711720264966,-500.0,0.000503,120]
[320944686,1711720264976,-500.0,0.000503,120]
[320944687,1711720264985,-566.98643543,0.000503,120]
[320944688,1711720264994,-511.48206717,0.000503,120]
[320944689,1711720265005,-500.0,0.000503,120]
[320944690,1711720265014,-500.0,0.000503,120]
[320944691,1711720265023,-500.0,0.000503,120]
[320944692,1711720265033,-500.0,0.000503,120]
[320944693,1711720265043,-512.64781112,0.000503,120]
[320944694,1711720265053,-516.48771165,0.000503,120]
[320944695,1711720265064,-500.0,0.000503,120]
[320944696,1711720265074,-500.0,0.000503,120]
[320944697,1711720265084,-500.0,0.000503,120]
[320944698,1711720265096,-526.84176422,0.000503,120]
[320944699,1711720265106,-500.0,0.000503,120]
[320944700,1711720265116,-515.54528582,0.000503,120]
[320944701,1711720265126,-500.0,0.000503,120]
[320944702,1711720265136,-500.0,0.000503,120]
[320944703,1711720265146,-500.0,0.000503,120]
[320944704,1711720265156,-500.0,0.000503,120]
[320944705,1711720265166,-500.0,0.000503,120]
[320944706,1711720265176,-500.0,0.000503,120]
[320944707,1711720265186,-500.0,0.000503,120]
[320944708,1711720265195,-500.0,0.000503,120]
[320944709,1711720265205,-500.0,0.000503,120]
[320944710,1711720265215,-500.0,0.00050308,120]
[320944711,1711720265225,-500.0,0.00050308,120]
[320944712,1711720265235,-500.0,0.00050308,120]
[320944713,1711720265245,-500.0,0.00050308,120]
[320944714,1711720265255,-500.0,0.00050308,7]
[320944715,1711720265265,-500.0,0.00050308,120]
[320944716,1711720265275,-212.0489177,0.00050308,120]
[320944717,1711720265285,-500.0,0.00050308,120]
[320944718,1711720265295,-524.72636127,0.00050308,120]
[320944719,1711720265305,-360.01764382,0.00050308,120]
[320944720,1711720265315,-500.0,0.00050308,120]
[320944721,1711720265324,-500.0,0.00050308,120]
[320944722,1711720265334,-500.0,0.00050308,120]
[320944723,1711720265343,-500.0,0.00050308,120]
[320944724,1711720265353,-500.0,0.00050308,120]
[320944725,1711720265363,-500.0,0.00050308,120]
[320944726,1711720265374,-500.0,0.00050308,120]
[320944727,1711720265389,-482.8455469,0.00050308,120]
[320944728,1711720265400,-500.0,0.00050308,120]
[320944729,1711720265410,-529.68252939,0.00050308,120]
[320944730,1711720265419,-506.64612655,0.00050308,120]
[320944731,1711720265428,-500.0,0.00050308,120]
[320944732,1711720265437,-500.0,0.00050308,120]
[320944733,1711720265446,-500.0,0.00050308,120]
[320944734,1711720265455,-500.0,0.00050308,120]
[320944735,1711720265466,-500.0,0.00050308,15]
[320944736,1711720265475,-500.0,0.00050308,120]
[320944737,1711720265485,-500.0,0.00050308,120]
[320944738,1711720265494,-500.0,0.00050308,120]
[320944739,1711720265504,-500.0,0.00050308,120]
[320944740,1711720265513,-522.29830859,0.00050308,120]
[320944741,1711720265522,-500.0,0.00050308,120]
[320944742,1711720265532,-500.0,0.00050308,120]
[320944743,1711720265541,-500.0,0.00050308,120]
[320944744,1711720265550,-518.57535101,0.00050308,120]
[320944745,1711720265560,-505.84168154,0.00050308,120]
[320944746,1711720265569,-508.99,0.00050308,120]
[320944747,1711720265578,-500.0,0.00050308,120]
[320944748,1711720265588,-588.03373297,0.00050308,120]
[320944749,1711720265598,-500.0,0.00050308,120]
[320944750,1711720265608,-409.7854646,0.00050308,120]